[Event "94th FRA-ch Open B 2019"]
[Site "Chartres"]
[Date "2019.08.18"]
[Round "2.5"]
[White "Navrotescu, Vlad-Andrei"]
[Black "Ferry, Roger"]
[Result "1-0"]
[ECO "D02"]
[WhiteElo "1943"]
[BlackElo "1853"]
[Annotator "NA"]
[PlyCount "103"]
[EventDate "2019.08.17"]
[EventType "swiss"]
[EventCountry "FRA"]
[SourceTitle "playchess.com"]
[Source "ChessBase"]
[SourceQuality "1"]
[TimeControl "40/5400+30:1800+30"]

1. d4 {[%emt 0:00:00]} d5 {[%emt 0:00:00]} 2. Bf4 {[%emt 0:00:00]} Nf6 {[%emt 0:00:32]} 3. e3 {[%emt 0:00:00]} Bf5 {[%emt 0:01:24]} 4. c4 {[%emt 0:00:35]} e6 {[%emt 0:00:40]} 5. Nc3 {[%emt 0:00:07]} c6 {[%emt 0:00:24]} 6. Qb3 {[%emt 0:02:19]} Qb6 {[%emt 0:00:59]} 7. c5 {[%emt 0:00:06]} Qxb3 {[%emt 0:00:24]} 8. axb3 {[%emt 0:00:08]} Nbd7 {[%emt 0:00:40]} 9. Nf3 {[%emt 0:02:20]} Nh5 {[%emt 0:02:50]} 10. Be5 {[%emt 0:00:11]} Nxe5 {[%emt 0:01:31]} 11. Nxe5 {[%emt 0:00:08]} Nf6 {[%emt 0:01:20]} 12. b4 {[%emt 0:00:12]} Nd7 {[%emt 0:02:47]} 13. Nxd7 {[%emt 0:16:13]} Kxd7 {[%emt 0:00:07]} 14. b5 {[%emt 0:00:49]} Be7 {[%emt 0:00:32]} 15. bxc6+ {[%emt 0:00:21]} bxc6 {[%emt 0:00:40]} 16. b4 {[%emt 0:00:51]} Rhb8 {[%emt 0:04:09]} 17. b5 {[%emt 0:00:33]} Kc7 {[%emt 0:14:22]} 18. Ra6 {[%emt 0:13:52]} cxb5 {[%emt 0:14:54]} 19. Bxb5 {[%emt 0:00:28]} Rxb5 {[%emt 0:07:06]} 20. Nxb5+ {[%emt 0:00:19]} Kb7 {[%emt 0:00:07]} 21. Ra3 {[%emt 0:01:58]} a6 {[%emt 0:00:53]} 22. Nc3 {[%emt 0:00:37]} a5 {[%emt 0:03:03]} 23. Kd2 {[%emt 0:00:35]} Bd8 {[%emt 0:01:03]} 24. Nb5 {[%emt 0:01:46]} Kc6 {[%emt 0:01:06]} 25. Nd6 {[%emt 0:00:17]} Bg6 {[%emt 0:01:20]} 26. h4 {[%emt 0:01:48]} h5 {[%emt 0:00:37]} 27. Rha1 {[%emt 0:04:54]} Bc7 {[%emt 0:05:14]} 28. f3 {[%emt 0:00:48]} f5 {[%emt 0:01:58]} 29. Rb3 {[%emt 0:02:14]} a4 {[%emt 0:03:19]} 30. Rba3 {[%emt 0:00:14]} Bxd6 {[%emt 0:02:03]} 31. cxd6 {[%emt 0:00:07]} Kxd6 {[%emt 0:00:10]} 32. Rxa4 {[%emt 0:00:07]} Rxa4 {[%emt 0:00:26]} 33. Rxa4 {[%emt 0:00:05]} Ke7 {[%emt 0:00:32]} 34. Ra6 {[%emt 0:00:49]} Kf6 {[%emt 0:01:06]} 35. Ke2 {[%emt 0:00:22]} Be8 {[%emt 0:08:07]} 36. Kf2 {[%emt 0:00:11]} Bg6 {[%emt 0:05:04]} 37. Kg3 {[%emt 0:00:05]} Be8 {[%emt 0:00:58]} 38. Kf4 {[%emt 0:00:06]} Bg6 {[%emt 0:03:31]} 39. Rb6 {[%emt 0:01:39]} Bh7 {[%emt 0:01:45]} 40. Rb8 {[%emt 0:00:54]} Bg6 {[%emt 0:01:52]} 41. Rh8 {[%emt 0:33:00]} Bf7 {[%emt 0:30:56]} 42. e4 {[%emt 0:01:10]} dxe4 {[%emt 0:01:04]} 43. fxe4 {[%emt 0:00:11]} fxe4 {[%emt 0:00:13]} 44. Kxe4 {[%emt 0:00:02]} Bg6+ {[%emt 0:03:33]} 45. Kf4 {[%emt 0:00:07]} Bf7 {[%emt 0:00:44]} 46. Rb8 {[%emt 0:00:14]} Bg6 {[%emt 0:04:22]} 47. Rb6 {[%emt 0:00:07]} Ke7 {[%emt 0:01:24]} 48. Ke5 {[%emt 0:00:19]} Bf7 {[%emt 0:00:36]} 49. Rb7+ {[%emt 0:00:07]} Ke8 {[%emt 0:01:22]} 50. Kd6 {[%emt 0:00:27]} Bg6 {[%emt 0:00:29]} 51. Kxe6 {[%emt 0:00:09]} Kd8 {[%emt 0:00:34]} 52. Rxg7 {[%emt 0:00:05]} 1-0

[Event "94th FRA-ch Open B 2019"]
[Site "Chartres"]
[Date "2019.08.18"]
[Round "2.6"]
[White "Fleurquin, Bryan"]
[Black "Dieuleveut, Floriane"]
[Result "1/2-1/2"]
[ECO "E90"]
[WhiteElo "1930"]
[BlackElo "1848"]
[Annotator "NA"]
[PlyCount "68"]
[EventDate "2019.08.17"]
[EventType "swiss"]
[EventCountry "FRA"]
[SourceTitle "playchess.com"]
[Source "ChessBase"]
[SourceQuality "1"]
[TimeControl "40/5400+30:1800+30"]

1. d4 {[%emt 0:00:00]} Nf6 {[%emt 0:00:59]} 2. c4 {[%emt 0:00:00]} g6 {[%emt 0:00:19]} 3. Nc3 {[%emt 0:00:00]} Bg7 {[%emt 0:00:14]} 4. e4 {[%emt 0:00:00]} d6 {[%emt 0:00:47]} 5. Nf3 {[%emt 0:00:31]} O-O {[%emt 0:01:30]} 6. Bd3 {[%emt 0:00:51]} Bg4 {[%emt 0:04:40]} 7. Be3 {[%emt 0:04:51]} Nc6 {[%emt 0:01:30]} 8. h3 {[%emt 0:00:52]} Bxf3 {[%emt 0:01:43]} 9. gxf3 {[%emt 0:05:18]} Nd7 {[%emt 0:09:06]} 10. Ne2 {[%emt 0:08:15]} Nb4 {[%emt 0:12:47]} 11. a3 {[%emt 0:01:33]} Nxd3+ {[%emt 0:00:33]} 12. Qxd3 {[%emt 0:00:11]} c5 {[%emt 0:09:56]} 13. Rd1 {[%emt 0:08:51]} cxd4 {[%emt 0:18:08]} 14. Bxd4 {[%emt 0:01:33]} Bxd4 {[%emt 0:04:28]} 15. Nxd4 {[%emt 0:02:00]} Nc5 {[%emt 0:26:47]} 16. Qe3 {[%emt 0:03:12]} Ne6 {[%emt 0:00:46]} 17. Nxe6 {[%emt 0:05:00]} fxe6 {[%emt 0:00:05]} 18. h4 {[%emt 0:00:37]} Qa5+ {[%emt 0:01:03]} 19. Ke2 {[%emt 0:01:47]} Qe5 {[%emt 0:00:28]} 20. Qd4 {[%emt 0:02:22]} Qxd4 {[%emt 0:00:40]} 21. Rxd4 {[%emt 0:00:02]} Rac8 {[%emt 0:00:57]} 22. b3 {[%emt 0:00:25]} Rc5 {[%emt 0:01:12]} 23. Ke3 {[%emt 0:01:32]} Rh5 {[%emt 0:00:58]} 24. Rdd1 {[%emt 0:01:02]} Rc5 {[%emt 0:00:58]} 25. Rdg1 {[%emt 0:02:34]} Kf7 {[%emt 0:00:07]} 26. Rg5 {[%emt 0:01:52]} Rfc8 {[%emt 0:01:09]} 27. Rxc5 {[%emt 0:02:25]} Rxc5 {[%emt 0:00:05]} 28. f4 {[%emt 0:00:08]} b5 {[%emt 0:01:24]} 29. Kd4 {[%emt 0:00:57]} bxc4 {[%emt 0:00:13]} 30. bxc4 {[%emt 0:00:11]} Ra5 {[%emt 0:00:13]} 31. Ra1 {[%emt 0:02:28]} Rh5 {[%emt 0:00:38]} 32. Rh1 {[%emt 0:00:14]} Ra5 {[%emt 0:00:31]} 33. Ra1 {[%emt 0:00:25]} Rh5 {[%emt 0:00:59]} 34. Rh1 {[%emt 0:00:10]} Ra5 {[%emt 0:00:20]} 1/2-1/2

[Event "94th FRA-ch Open B 2019"]
[Site "Chartres"]
[Date "2019.08.19"]
[Round "3.1"]
[White "Trouville, Remi"]
[Black "Lucbernet, Thomas"]
[Result "1/2-1/2"]
[ECO "C12"]
[WhiteElo "1991"]
[BlackElo "1873"]
[Annotator "NA"]
[PlyCount "107"]
[EventDate "2019.08.17"]
[EventType "swiss"]
[EventCountry "FRA"]
[SourceTitle "playchess.com"]
[Source "ChessBase"]
[SourceQuality "1"]
[TimeControl "40/5400+30:1800+30"]

1. d4 {[%emt 0:00:43]} d5 {[%emt 0:00:18]} 2. Nc3 {[%emt 0:00:16]} Nf6 {[%emt 0:02:04]} 3. e4 {[%emt 0:00:08]} e6 {[%emt 0:05:14]} 4. Bg5 {[%emt 0:02:22]} Bb4 {[%emt 0:01:21]} 5. e5 {[%emt 0:15:40]} h6 {[%emt 0:00:46]} 6. exf6 {[%emt 0:00:16]} hxg5 {[%emt 0:00:19]} 7. fxg7 {[%emt 0:00:11]} Rg8 {[%emt 0:00:33]} 8. Qh5 {[%emt 0:00:21]} Qf6 {[%emt 0:03:16]} 9. O-O-O {[%emt 0:01:01]} Qxg7 {[%emt 0:21:58]} 10. Nge2 {[%emt 0:29:03]} Nc6 {[%emt 0:18:55]} 11. Nb5 {[%emt 0:05:57]} Ba5 {[%emt 0:06:53]} 12. c3 {[%emt 0:00:48]} a6 {[%emt 0:01:51]} 13. Na3 {[%emt 0:00:08]} b5 {[%emt 0:03:07]} 14. Nc2 {[%emt 0:04:53]} b4 {[%emt 0:08:59]} 15. Qf3 {[%emt 0:02:57]} bxc3 {[%emt 0:01:41]} 16. Nxc3 {[%emt 0:00:24]} Bd7 {[%emt 0:05:30]} 17. Qe3 {[%emt 0:03:34]} Kd8 {[%emt 0:02:07]} 18. h4 {[%emt 0:03:32]} gxh4 {[%emt 0:05:48]} 19. Rxh4 {[%emt 0:01:18]} Qg5 {[%emt 0:02:05]} 20. Qxg5+ {[%emt 0:00:21]} Rxg5 {[%emt 0:00:05]} 21. Rh8+ {[%emt 0:01:15]} Be8 {[%emt 0:00:08]} 22. Ne2 {[%emt 0:07:26]} Nb4 {[%emt 0:01:16]} 23. Nxb4 {[%emt 0:02:23]} Bxb4 {[%emt 0:00:04]} 24. f4 {[%emt 0:00:36]} Rg7 {[%emt 0:00:37]} 25. Rd3 {[%emt 0:02:49]} f5 {[%emt 0:04:07]} 26. Rb3 {[%emt 0:08:21]} Bd6 {[%emt 0:00:21]} 27. g3 {[%emt 0:00:48]} Ke7 {[%emt 0:01:53]} 28. Re3 {[%emt 0:01:18]} Bc6 {[%emt 0:01:16]} 29. Rh6 {[%emt 0:00:35]} Bd7 {[%emt 0:00:24]} 30. Nc3 {[%emt 0:02:36]} Kf7 {[%emt 0:00:41]} 31. Ne2 {[%emt 0:00:10]} Rb8 {[%emt 0:00:52]} 32. Kc2 {[%emt 0:00:16]} Rg6 {[%emt 0:00:19]} 33. Rh7+ {[%emt 0:01:12]} Rg7 {[%emt 0:00:05]} 34. Rh1 {[%emt 0:00:17]} Bb5 {[%emt 0:00:23]} 35. Nc3 {[%emt 0:00:54]} Bxf1 {[%emt 0:00:11]} 36. Rxf1 {[%emt 0:00:06]} Rbg8 {[%emt 0:00:20]} 37. Ne2 {[%emt 0:01:58]} Rh7 {[%emt 0:00:37]} 38. Rf2 {[%emt 0:01:32]} c5 {[%emt 0:00:43]} 39. Ra3 {[%emt 0:00:19]} cxd4 {[%emt 0:01:12]} 40. Rxa6 {[%emt 0:00:22]} Rc8+ {[%emt 0:01:03]} 41. Kd3 {[%emt 0:04:45]} Bc5 {[%emt 0:11:23]} 42. Nxd4 {[%emt 0:03:46]} Rh1 {[%emt 0:09:16]} 43. Rd2 {[%emt 0:07:05]} Re1 {[%emt 0:08:31]} 44. Rc6 {[%emt 0:08:26]} Rxc6 {[%emt 0:01:10]} 45. Nxc6 {[%emt 0:00:07]} Re3+ {[%emt 0:00:47]} 46. Kc2 {[%emt 0:00:09]} Rxg3 {[%emt 0:00:26]} 47. Ne5+ {[%emt 0:00:45]} Ke7 {[%emt 0:00:43]} 48. Rh2 {[%emt 0:00:44]} Be3 {[%emt 0:01:21]} 49. Rh7+ {[%emt 0:02:08]} Kd6 {[%emt 0:00:27]} 50. Rd7+ {[%emt 0:01:51]} Kc5 {[%emt 0:00:07]} 51. Nd3+ {[%emt 0:01:29]} Kd4 {[%emt 0:00:51]} 52. Nb4 {[%emt 0:02:27]} Bxf4 {[%emt 0:00:29]} 53. Nc6+ {[%emt 0:00:52]} Kc5 {[%emt 0:00:39]} 54. Na5 {[%emt 0:01:37]} 1/2-1/2

[Event "94th FRA-ch Open B 2019"]
[Site "Chartres"]
[Date "2019.08.19"]
[Round "3.2"]
[White "Le Solleu, Guillaume"]
[Black "Dorval, Olivier"]
[Result "1-0"]
[ECO "A90"]
[WhiteElo "1944"]
[BlackElo "1868"]
[Annotator "NA"]
[PlyCount "131"]
[EventDate "2019.08.17"]
[EventType "swiss"]
[EventCountry "FRA"]
[SourceTitle "playchess.com"]
[Source "ChessBase"]
[SourceQuality "1"]
[TimeControl "40/5400+30:1800+30"]

1. d4 {[%emt 0:00:00]} e6 {[%emt 0:00:00]} 2. c4 {[%emt 0:00:00]} f5 {[%emt 0:00:00]} 3. g3 {[%emt 0:00:00]} Nf6 {[%emt 0:00:00]} 4. Bg2 {[%emt 0:00:00]} c6 {[%emt 0:00:02]} 5. Qc2 {[%emt 0:00:06]} d5 {[%emt 0:00:22]} 6. Nh3 {[%emt 0:00:10]} Bd6 {[%emt 0:01:55]} 7. Bf4 {[%emt 0:00:06]} O-O {[%emt 0:00:47]} 8. O-O {[%emt 0:00:11]} Qe7 {[%emt 0:03:13]} 9. Bxd6 {[%emt 0:07:30]} Qxd6 {[%emt 0:00:05]} 10. Nd2 {[%emt 0:05:32]} Bd7 {[%emt 0:00:51]} 11. Nf3 {[%emt 0:08:32]} Be8 {[%emt 0:04:40]} 12. Nf4 {[%emt 0:01:53]} Ne4 {[%emt 0:10:42]} 13. h4 {[%emt 0:02:58]} Nd7 {[%emt 0:00:57]} 14. Nd3 {[%emt 0:13:03]} Bh5 {[%emt 0:09:55]} 15. c5 {[%emt 0:03:57]} Qe7 {[%emt 0:18:31]} 16. b4 {[%emt 0:02:06]} g5 {[%emt 0:07:32]} 17. hxg5 {[%emt 0:00:40]} Nxg5 {[%emt 0:00:41]} 18. Nfe5 {[%emt 0:10:45]} Nxe5 {[%emt 0:02:00]} 19. Nxe5 {[%emt 0:08:03]} Nf7 {[%emt 0:00:41]} 20. Bf3 {[%emt 0:05:48]} Bxf3 {[%emt 0:09:37]} 21. Nxf3 {[%emt 0:00:26]} Kh8 {[%emt 0:06:36]} 22. Kg2 {[%emt 0:01:10]} Rg8 {[%emt 0:00:21]} 23. e3 {[%emt 0:03:18]} Qc7 {[%emt 0:05:55]} 24. Rh1 {[%emt 0:00:24]} Rg7 {[%emt 0:06:18]} 25. Rh3 {[%emt 0:03:21]} Rag8 {[%emt 0:00:19]} 26. Rah1 {[%emt 0:00:36]} Ng5 {[%emt 0:04:46]} 27. Nxg5 {[%emt 0:03:48]} Rxg5 {[%emt 0:00:06]} 28. Rxh7+ {[%emt 0:00:57]} Qxh7 {[%emt 0:00:02]} 29. Rxh7+ {[%emt 0:00:12]} Kxh7 {[%emt 0:00:01]} 30. a4 {[%emt 0:08:14]} a6 {[%emt 0:01:12]} 31. b5 {[%emt 0:00:29]} axb5 {[%emt 0:00:31]} 32. axb5 {[%emt 0:00:13]} R5g7 {[%emt 0:03:52]} 33. bxc6 {[%emt 0:01:37]} bxc6 {[%emt 0:00:03]} 34. Qb1 {[%emt 0:00:17]} Rc8 {[%emt 0:01:23]} 35. Kf3 {[%emt 0:01:48]} Kg6 {[%emt 0:01:20]} 36. Qb6 {[%emt 0:00:45]} Kf6 {[%emt 0:01:18]} 37. Qa6 {[%emt 0:00:23]} Rgc7 {[%emt 0:00:20]} 38. Kf4 {[%emt 0:00:40]} Rg8 {[%emt 0:00:16]} 39. Qb6 {[%emt 0:00:47]} Rgc8 {[%emt 0:00:23]} 40. f3 {[%emt 0:05:33]} Rg7 {[%emt 0:00:59]} 41. g4 {[%emt 0:31:07]} fxg4 {[%emt 0:31:17]} 42. fxg4 {[%emt 0:00:30]} Rcg8 {[%emt 0:00:00]} 43. Qxc6 {[%emt 0:00:00]} Rxg4+ {[%emt 0:00:00]} 44. Kf3 {[%emt 0:00:00]} Rg3+ {[%emt 0:00:00]} 45. Ke2 {[%emt 0:00:00]} Rg2+ {[%emt 0:00:00]} 46. Kd3 {[%emt 0:00:00]} Ra2 {[%emt 0:00:00]} 47. Qd6 {[%emt 0:00:00]} Rgg2 {[%emt 0:00:00]} 48. c6 {[%emt 0:00:00]} Rab2 {[%emt 0:00:00]} 49. Qf8+ {[%emt 0:00:00]} Kg6 {[%emt 0:00:00]} 50. Qg8+ {[%emt 0:00:00]} Kf5 {[%emt 0:00:00]} 51. Qf7+ {[%emt 0:00:00]} Kg5 {[%emt 0:00:00]} 52. Qe7+ {[%emt 0:00:00]} Kh5 {[%emt 0:00:00]} 53. Qh7+ {[%emt 0:00:00]} Kg4 {[%emt 0:00:54]} 54. Kc3 {[%emt 0:00:00]} Ra2 {[%emt 0:05:36]} 55. c7 {[%emt 0:00:00]} Ra3+ {[%emt 0:00:24]} 56. Kb4 {[%emt 0:00:00]} Ra8 {[%emt 0:00:22]} 57. Qg6+ {[%emt 0:03:30]} Kf3 {[%emt 0:00:21]} 58. Qxe6 {[%emt 0:01:05]} Rgg8 {[%emt 0:00:56]} 59. Kc5 {[%emt 0:01:16]} Ra5+ {[%emt 0:00:34]} 60. Kb6 {[%emt 0:00:26]} Raa8 {[%emt 0:00:09]} 61. Kb7 {[%emt 0:00:16]} Ke2 {[%emt 0:00:35]} 62. Qxd5 {[%emt 0:00:26]} Kxe3 {[%emt 0:00:07]} 63. Qe5+ {[%emt 0:00:10]} Kd3 {[%emt 0:00:29]} 64. d5 {[%emt 0:00:16]} Rae8 {[%emt 0:01:12]} 65. Qf5+ {[%emt 0:01:08]} Kc4 {[%emt 0:00:25]} 66. d6 {[%emt 0:00:11]} 1-0

[Event "94th FRA-ch Open B 2019"]
[Site "Chartres"]
[Date "2019.08.19"]
[Round "3.3"]
[White "Fretel, Liza"]
[Black "Navrotescu, Vlad-Andrei"]
[Result "1-0"]
[ECO "B06"]
[WhiteElo "1859"]
[BlackElo "1943"]
[Annotator "NA"]
[PlyCount "97"]
[EventDate "2019.08.17"]
[EventType "swiss"]
[EventCountry "FRA"]
[SourceTitle "playchess.com"]
[Source "ChessBase"]
[SourceQuality "1"]
[TimeControl "40/5400+30:1800+30"]

1. e4 {[%emt 0:00:00]} g6 {[%emt 0:00:00]} 2. d4 {[%emt 0:00:00]} Bg7 {[%emt 0:00:00]} 3. Nf3 {[%emt 0:00:00]} d6 {[%emt 0:00:00]} 4. h3 {[%emt 1:32:00]} a6 {[%emt 0:00:09]} 5. Bd3 {[%emt 0:00:00]} b5 {[%emt 0:00:17]} 6. O-O {[%emt 0:00:00]} Bb7 {[%emt 0:00:15]} 7. c3 {[%emt 0:00:00]} Nc6 {[%emt 0:01:57]} 8. a4 {[%emt 0:00:00]} b4 {[%emt 0:04:08]} 9. Qb3 {[%emt 0:00:00]} e6 {[%emt 0:15:28]} 10. a5 {[%emt 0:00:00]} Nge7 {[%emt 0:17:43]} 11. Be3 {[%emt 0:00:00]} d5 {[%emt 0:12:16]} 12. e5 {[%emt 0:00:00]} Rb8 {[%emt 0:11:50]} 13. cxb4 {[%emt 0:00:00]} Bc8 {[%emt 0:00:06]} 14. Ra4 {[%emt 0:00:00]} Nf5 {[%emt 0:02:59]} 15. Rc1 {[%emt 0:00:00]} Bd7 {[%emt 0:00:22]} 16. Bxa6 {[%emt 0:00:00]} Nxe3 {[%emt 0:03:43]} 17. fxe3 {[%emt 0:00:00]} Na7 {[%emt 0:00:12]} 18. b5 {[%emt 0:00:00]} Nxb5 {[%emt 0:01:54]} 19. Rb4 {[%emt 0:00:00]} c6 {[%emt 0:00:10]} 20. Rxc6 {[%emt 0:00:00]} Bxc6 {[%emt 0:00:47]} 21. Bxb5 {[%emt 0:00:00]} Bxb5 {[%emt 0:00:43]} 22. Rxb5 {[%emt 0:00:00]} O-O {[%emt 0:00:39]} 23. Nc3 {[%emt 0:00:00]} Bh6 {[%emt 0:05:44]} 24. Kf2 {[%emt 0:00:00]} f6 {[%emt 0:01:38]} 25. exf6 {[%emt 0:00:00]} Rxb5 {[%emt 0:01:03]} 26. Qxb5 {[%emt 0:00:00]} Qxf6 {[%emt 0:00:11]} 27. Ke2 {[%emt 0:00:00]} Qf5 {[%emt 0:03:17]} 28. Kd2 {[%emt 0:00:00]} g5 {[%emt 0:02:27]} 29. Qe2 {[%emt 0:00:00]} Rb8 {[%emt 0:02:50]} 30. Kc1 {[%emt 0:00:05]} g4 {[%emt 0:00:03]} 31. hxg4 {[%emt 0:00:42]} Qxg4 {[%emt 0:00:08]} 32. a6 {[%emt 0:00:42]} Qg7 {[%emt 0:01:43]} 33. Ne5 {[%emt 0:01:02]} Rc8 {[%emt 0:04:27]} 34. Kc2 {[%emt 0:02:04]} Qe7 {[%emt 0:02:40]} 35. Nd3 {[%emt 0:00:40]} Qg5 {[%emt 0:00:42]} 36. Nc5 {[%emt 0:01:08]} Qxe3 {[%emt 0:00:45]} 37. Qxe3 {[%emt 0:00:19]} Bxe3 {[%emt 0:00:06]} 38. Kd3 {[%emt 0:00:13]} Bc1 {[%emt 0:00:34]} 39. b4 {[%emt 0:00:54]} Kf7 {[%emt 0:00:25]} 40. b5 {[%emt 0:00:20]} Bf4 {[%emt 0:02:57]} 41. b6 {[%emt 0:31:22]} Rg8 {[%emt 0:03:03]} 42. Ne2 {[%emt 0:00:00]} Bd6 {[%emt 0:00:36]} 43. a7 {[%emt 0:00:00]} Ra8 {[%emt 0:00:13]} 44. Nc3 {[%emt 0:00:00]} Bc7 {[%emt 0:04:10]} 45. bxc7 {[%emt 0:00:00]} Ke7 {[%emt 0:00:15]} 46. Nb5 {[%emt 0:00:00]} Rg8 {[%emt 0:02:27]} 47. Kc3 {[%emt 0:00:00]} h5 {[%emt 0:00:16]} 48. Na6 {[%emt 0:00:00]} Ra8 {[%emt 0:00:10]} 49. Nb8 {[%emt 0:00:00]} 1-0

[Event "94th FRA-ch Open B 2019"]
[Site "Chartres"]
[Date "2019.08.19"]
[Round "3.4"]
[White "Pinson, Alexis"]
[Black "Pavee, Louis"]
[Result "1-0"]
[ECO "C06"]
[WhiteElo "1841"]
[BlackElo "1921"]
[Annotator "NA"]
[PlyCount "81"]
[EventDate "2019.08.17"]
[EventType "swiss"]
[EventCountry "FRA"]
[SourceTitle "playchess.com"]
[Source "ChessBase"]
[SourceQuality "1"]
[TimeControl "40/5400+30:1800+30"]

1. e4 {[%emt 0:00:00]} e6 {[%emt 0:03:35]} 2. d4 {[%emt 0:00:00]} d5 {[%emt 0:00:37]} 3. Nd2 {[%emt 0:00:22]} Nf6 {[%emt 0:00:11]} 4. e5 {[%emt 0:00:04]} Nfd7 {[%emt 0:00:07]} 5. Bd3 {[%emt 0:00:04]} c5 {[%emt 0:00:07]} 6. c3 {[%emt 0:00:04]} Nc6 {[%emt 0:00:03]} 7. Ne2 {[%emt 0:00:12]} cxd4 {[%emt 0:00:08]} 8. cxd4 {[%emt 0:00:05]} f6 {[%emt 0:00:05]} 9. exf6 {[%emt 0:00:04]} Nxf6 {[%emt 0:00:06]} 10. Nf3 {[%emt 0:00:08]} Bd6 {[%emt 0:00:07]} 11. O-O {[%emt 0:00:07]} Qc7 {[%emt 0:00:03]} 12. g3 {[%emt 0:00:25]} O-O {[%emt 0:07:14]} 13. Bf4 {[%emt 0:01:16]} e5 {[%emt 0:08:10]} 14. dxe5 {[%emt 0:01:02]} Nxe5 {[%emt 0:00:50]} 15. Nxe5 {[%emt 0:00:06]} Bxe5 {[%emt 0:00:07]} 16. Rc1 {[%emt 0:00:39]} Qd6 {[%emt 0:04:36]} 17. Re1 {[%emt 0:05:07]} Bg4 {[%emt 0:09:03]} 18. Bxe5 {[%emt 0:06:58]} Qxe5 {[%emt 0:01:27]} 19. Nd4 {[%emt 0:04:52]} Qd6 {[%emt 0:09:39]} 20. f3 {[%emt 0:01:28]} Bd7 {[%emt 0:10:48]} 21. Kg2 {[%emt 0:01:14]} Kh8 {[%emt 0:06:19]} 22. Qd2 {[%emt 0:01:21]} Rae8 {[%emt 0:02:37]} 23. Bb5 {[%emt 0:05:50]} Bxb5 {[%emt 0:03:45]} 24. Nxb5 {[%emt 0:01:32]} Qb6 {[%emt 0:00:08]} 25. Nd4 {[%emt 0:00:27]} Nd7 {[%emt 0:05:42]} 26. b3 {[%emt 0:06:49]} a6 {[%emt 0:04:05]} 27. Rxe8 {[%emt 0:03:43]} Rxe8 {[%emt 0:01:07]} 28. Nf5 {[%emt 0:02:14]} Qe6 {[%emt 0:01:15]} 29. Qg5 {[%emt 0:01:53]} Qe5 {[%emt 0:01:29]} 30. Re1 {[%emt 0:01:05]} Qb2+ {[%emt 0:00:06]} 31. Kh3 {[%emt 0:00:03]} Rf8 {[%emt 0:02:56]} 32. Re7 {[%emt 0:06:17]} Qf6 {[%emt 0:01:38]} 33. Qxf6 {[%emt 0:00:06]} Nxf6 {[%emt 0:00:08]} 34. Rxb7 {[%emt 0:00:24]} g6 {[%emt 0:00:10]} 35. Nd4 {[%emt 0:00:16]} Ra8 {[%emt 0:00:43]} 36. Rf7 {[%emt 0:01:17]} Nh5 {[%emt 0:00:31]} 37. Rd7 {[%emt 0:00:43]} Nf6 {[%emt 0:00:10]} 38. Rd6 {[%emt 0:00:25]} Kg7 {[%emt 0:00:09]} 39. Ne6+ {[%emt 0:03:11]} Kf7 {[%emt 0:00:32]} 40. Nc7 {[%emt 0:00:19]} Ke7 {[%emt 0:00:41]} 41. Rxf6 {[%emt 0:30:14]} 1-0

[Event "94th FRA-ch Open B 2019"]
[Site "Chartres"]
[Date "2019.08.19"]
[Round "3.5"]
[White "Chabaud, Mathis"]
[Black "Carbonnier, Arnaud"]
[Result "1-0"]
[ECO "B15"]
[WhiteElo "1915"]
[BlackElo "1842"]
[Annotator "NA"]
[PlyCount "97"]
[EventDate "2019.08.17"]
[EventType "swiss"]
[EventCountry "FRA"]
[SourceTitle "playchess.com"]
[Source "ChessBase"]
[SourceQuality "1"]
[TimeControl "40/5400+30:1800+30"]

1. e4 {[%emt 0:00:00]} c6 {[%emt 0:00:00]} 2. Nc3 {[%emt 0:00:00]} d5 {[%emt 0:00:30]} 3. Nf3 {[%emt 0:00:10]} dxe4 {[%emt 0:00:24]} 4. Nxe4 {[%emt 0:00:22]} Nf6 {[%emt 0:00:12]} 5. Nxf6+ {[%emt 0:00:38]} exf6 {[%emt 0:00:10]} 6. d4 {[%emt 0:00:41]} Bd6 {[%emt 0:00:17]} 7. Be2 {[%emt 0:00:36]} O-O {[%emt 0:00:31]} 8. O-O {[%emt 0:00:43]} Re8 {[%emt 0:00:53]} 9. Be3 {[%emt 0:04:42]} Nd7 {[%emt 0:01:05]} 10. c4 {[%emt 0:02:37]} Nf8 {[%emt 0:01:44]} 11. Qb3 {[%emt 0:04:08]} h5 {[%emt 0:05:33]} 12. Rad1 {[%emt 0:05:52]} Qe7 {[%emt 0:18:45]} 13. Rfe1 {[%emt 0:09:53]} Be6 {[%emt 0:10:28]} 14. d5 {[%emt 0:17:13]} cxd5 {[%emt 0:08:05]} 15. cxd5 {[%emt 0:00:14]} Bg4 {[%emt 0:00:20]} 16. Nd4 {[%emt 0:09:42]} Qe5 {[%emt 0:10:48]} 17. g3 {[%emt 0:02:12]} Qe4 {[%emt 0:09:08]} 18. Bxg4 {[%emt 0:16:03]} Qxg4 {[%emt 0:00:15]} 19. Nb5 {[%emt 0:02:23]} Rad8 {[%emt 0:08:25]} 20. Nxd6 {[%emt 0:02:03]} Rxd6 {[%emt 0:00:02]} 21. Qxb7 {[%emt 0:01:23]} Ng6 {[%emt 0:03:02]} 22. Bc5 {[%emt 0:01:58]} Rdd8 {[%emt 0:00:32]} 23. d6 {[%emt 0:02:13]} Ne5 {[%emt 0:04:14]} 24. Kg2 {[%emt 0:01:22]} Ng6 {[%emt 0:07:47]} 25. f3 {[%emt 0:02:26]} Qc4 {[%emt 0:00:24]} 26. Qd5 {[%emt 0:01:05]} Re2+ {[%emt 0:01:51]} 27. Rxe2 {[%emt 0:01:07]} Qxe2+ {[%emt 0:00:08]} 28. Bf2 {[%emt 0:00:39]} h4 {[%emt 0:00:52]} 29. Rd2 {[%emt 0:01:13]} h3+ {[%emt 0:00:11]} 30. Kg1 {[%emt 0:02:42]} Qa6 {[%emt 0:00:27]} 31. b3 {[%emt 0:01:59]} Ne5 {[%emt 0:00:32]} 32. Be3 {[%emt 0:03:10]} Qc8 {[%emt 0:02:16]} 33. Kf2 {[%emt 0:00:15]} Qc1 {[%emt 0:02:43]} 34. Rd1 {[%emt 0:00:24]} Qc2+ {[%emt 0:00:09]} 35. Qd2 {[%emt 0:00:28]} Qf5 {[%emt 0:00:24]} 36. Bf4 {[%emt 0:00:25]} Nd7 {[%emt 0:01:26]} 37. Qd3 {[%emt 0:00:24]} Qa5 {[%emt 0:00:38]} 38. Rd2 {[%emt 0:00:54]} g5 {[%emt 0:00:28]} 39. Be3 {[%emt 0:00:20]} Ne5 {[%emt 0:00:29]} 40. Qd5 {[%emt 0:01:49]} Qc3 {[%emt 0:01:08]} 41. Qd4 {[%emt 0:09:13]} Qa5 {[%emt 0:00:28]} 42. Qxa7 {[%emt 0:01:50]} Qb5 {[%emt 0:11:47]} 43. Qb6 {[%emt 0:01:29]} Nd3+ {[%emt 0:00:06]} 44. Rxd3 {[%emt 0:02:49]} Qxd3 {[%emt 0:00:06]} 45. Qxd8+ {[%emt 0:00:05]} Kg7 {[%emt 0:00:08]} 46. Qa5 {[%emt 0:01:02]} Qxd6 {[%emt 0:00:52]} 47. Qc3 {[%emt 0:01:04]} Kg6 {[%emt 0:01:09]} 48. Ke2 {[%emt 0:00:32]} Qa6+ {[%emt 0:01:02]} 49. Qd3+ {[%emt 0:00:09]} 1-0